bitfinex-derivatives/quotes_BTCF0:USTF0_20241009
["timestamp","ask_amount","ask_price","bid_price","bid_amount"]
[1728459128217,0.08033,62271.0,62269.0,0.12]
[1728459128406,0.18033,62271.0,62269.0,0.12]
[1728459129817,0.18033,62271.0,62268.0,0.04815887]
[1728459129818,0.080332,62269.0,62268.0,0.04815887]
[1728459130016,0.080334,62268.0,62264.0,0.04815887]
[1728459130321,0.080334,62268.0,62261.0,0.06667808]
[1728459130322,0.080341,62262.0,62261.0,0.00240908]
[1728459130520,0.300341,62262.0,62261.0,0.00240908]
[1728459131723,0.300341,62262.0,62261.0,0.00940908]
[1728459133407,0.301341,62262.0,62261.0,0.01840908]
[1728459133718,0.181341,62262.0,62261.0,0.01840908]
[1728459134114,0.301341,62262.0,62261.0,0.01840908]
[1728459134310,0.181341,62262.0,62261.0,0.01840908]
[1728459136111,0.301341,62262.0,62261.0,0.01840908]
[1728459137608,0.301341,62262.0,62261.0,0.016]
[1728459141119,0.662141,62262.0,62261.0,0.016]
[1728459143526,0.542141,62262.0,62261.0,0.016]
[1728459145829,0.181341,62262.0,62261.0,0.016]
[1728459146714,0.101,62262.0,62261.0,0.096343]
[1728459146914,0.101,62262.0,62261.0,0.158243]
[1728459148029,0.101,62262.0,62261.0,1.304352]
[1728459148030,0.001,62262.0,62261.0,1.304352]
[1728459148215,0.0037,62268.0,62267.0,0.080335]
[1728459148420,0.1,62268.0,62267.0,0.200335]
[1728459149219,0.1,62268.0,62267.0,0.24839808]
[1728459149625,0.1,62268.0,62267.0,0.24939808]
[1728459149931,0.1,62268.0,62267.0,0.25239808]
[1728459150432,0.1,62268.0,62267.0,0.204335]
[1728459152243,0.1,62268.0,62267.0,0.23364741]
[1728459153036,0.1,62268.0,62267.0,0.28171049]
[1728459155419,0.1,62268.0,62267.0,0.23364741]
[1728459158226,0.1,62268.0,62267.0,0.28171049]
[1728459158434,0.1,62268.0,62267.0,0.23364741]
[1728459158630,0.1,62268.0,62267.0,0.28171049]
[1728459159032,0.1,62268.0,62267.0,0.23364741]
[1728459159231,0.0074,62275.0,62274.0,0.080326]
[1728459159431,0.1,62275.0,62274.0,0.080326]
[1728459159937,0.1,62275.0,62274.0,0.111926]
[1728459160635,0.108,62275.0,62274.0,0.111926]
[1728459161429,0.108,62275.0,62274.0,0.14153474]
[1728459161932,0.108,62275.0,62274.0,0.10993474]
[1728459162534,0.104,62275.0,62274.0,0.10993474]
[1728459162734,0.105,62275.0,62274.0,0.10993474]
[1728459165632,0.105,62275.0,62274.0,0.15802747]
[1728459165833,0.105,62275.0,62274.0,0.10993474]
[1728459166234,0.105,62275.0,62274.0,0.17401885]
[1728459166436,0.105,62275.0,62274.0,0.10993474]
[1728459167130,0.105,62275.0,62274.0,0.17399117]
[1728459167332,0.105,62275.0,62274.0,0.10993474]
[1728459167537,0.005,62275.0,62274.0,0.10993474]
[1728459170337,0.005,62275.0,62274.0,0.17396676]
[1728459170845,0.005,62275.0,62274.0,0.10993474]
[1728459171040,0.0037,62281.0,62274.0,0.10993474]
[1728459171240,0.0037,62284.0,62283.0,0.080314]
[1728459171447,0.00240909,62287.0,62286.0,0.08031]
[1728459171645,0.00240909,62287.0,62286.0,0.20031]
[1728459172343,0.00240909,62287.0,62286.0,0.56111]
[1728459172553,0.00240909,62287.0,62286.0,0.63111]
[1728459173147,0.00640909,62287.0,62286.0,0.63211]
[1728459174040,0.01740909,62287.0,62286.0,0.63311]
[1728459176157,0.01740909,62287.0,62286.0,0.66181087]
[1728459177441,0.01740909,62287.0,62286.0,0.70983319]
[1728459177650,0.01740909,62287.0,62286.0,0.66181087]
[1728459177846,0.01740909,62287.0,62286.0,0.70983319]
[1728459178355,0.01740909,62287.0,62286.0,0.70980701]
[1728459178556,0.0321,62296.0,62286.0,0.58150087]
[1728459178751,0.0321,62296.0,62295.0,0.270299]
[1728459179056,0.00240806,62304.0,62303.0,0.080289]
[1728459179254,0.00240806,62304.0,62303.0,0.631089]
[1728459179440,0.080279,62311.0,62304.0,0.080287]
[1728459179648,0.180279,62311.0,62310.0,0.19]
[1728459180548,0.1,62311.0,62306.0,0.19]
[1728459180747,0.08028,62310.0,62306.0,0.19]
[1728459180945,0.080281,62309.0,62306.0,0.21942636]
[1728459181149,0.190281,62309.0,62306.0,0.21942636]
[1728459181956,0.11,62309.0,62306.0,0.21942636]
[1728459182165,0.11,62309.0,62306.0,0.22042636]
[1728459182461,0.0313,62308.0,62306.0,0.22042636]
[1728459182666,0.3608,62313.0,62306.0,0.22042636]
[1728459182957,0.53548001,62328.0,62312.0,0.19]
[1728459182958,0.0313,62317.0,62312.0,0.19]
[1728459183163,0.1413,62317.0,62316.0,0.270272]
[1728459183363,0.0313,62317.0,62316.0,0.270272]
[1728459185445,0.03,62320.0,62316.0,0.191]
[1728459185652,0.11,62320.0,62319.0,0.3608]
[1728459185965,0.03,62320.0,62319.0,0.3608]
[1728459186962,0.03,62320.0,62319.0,0.3618]
[1728459187352,0.032,62324.0,62319.0,0.442068]
[1728459187552,0.152,62324.0,62323.0,0.19]
[1728459189160,0.152,62324.0,62323.0,0.191]
[1728459189657,0.032,62324.0,62323.0,0.191]
[1728459190054,0.032,62324.0,62323.0,0.272263]
[1728459190361,0.00240796,62325.0,62324.0,0.080262]
[1728459191552,0.080251,62332.0,62323.0,0.191]
[1728459191854,0.190251,62332.0,62331.0,0.19]
[1728459192254,0.11,62332.0,62331.0,0.19]
[1728459193048,0.11,62332.0,62331.0,0.191]
[1728459194456,0.11,62332.0,62331.0,0.29053881]
[1728459194656,0.0301,62334.0,62333.0,0.08025]
[1728459194958,0.1401,62334.0,62333.0,0.08025]
[1728459195160,0.0331,62335.0,62334.0,0.080249]
[1728459195763,0.064,62343.0,62334.0,0.48128]
[1728459196061,0.064,62343.0,62341.0,0.18]
[1728459196062,0.441039,62342.0,62341.0,0.18]
[1728459196856,0.3608,62342.0,62337.0,0.260245]
[1728459197062,0.4708,62342.0,62337.0,0.080245]
[1728459197259,0.080242,62339.0,62337.0,0.080245]
[1728459197660,0.080247,62335.0,62334.0,0.001]
[1728459197863,0.190247,62335.0,62334.0,0.001]
[1728459198066,0.190247,62335.0,62334.0,0.002]
[1728459198552,0.11,62335.0,62334.0,0.002]
[1728459199160,0.11,62335.0,62334.0,0.001]
[1728459199358,0.190247,62335.0,62334.0,0.001]
[1728459199764,0.190247,62335.0,62334.0,0.002]
[1728459200959,0.190247,62335.0,62327.0,0.0037]
[1728459200960,0.080256,62328.0,62327.0,0.0037]
[1728459201164,0.08026,62325.0,62322.0,0.080264]
[1728459201465,0.12,62325.0,62318.0,0.441069]
[1728459201764,0.080263,62323.0,62318.0,0.441069]
[1728459201956,0.0318,62322.0,62318.0,0.441069]
[1728459202154,0.1418,62322.0,62318.0,0.441069]
[1728459202667,0.1418,62322.0,62318.0,0.47047408]
[1728459202864,0.222064,62322.0,62318.0,0.39020508]
[1728459203765,0.222064,62322.0,62318.0,0.02940508]
[1728459204071,0.3608,62321.0,62315.0,0.270273]
[1728459204369,0.5111,62321.0,62315.0,0.270273]
[1728459205372,0.5111,62321.0,62315.0,0.273273]
[1728459205869,0.080271,62317.0,62315.0,0.0321857]
[1728459206071,0.190271,62317.0,62315.0,0.0321857]
[1728459207168,0.190271,62317.0,62315.0,0.0331857]
[1728459207868,0.190271,62317.0,62315.0,0.0321857]
[1728459208564,0.190271,62317.0,62315.0,0.0291857]
[1728459208769,0.190271,62317.0,62314.0,0.05016629]
[1728459209472,0.190271,62317.0,62315.0,0.04775961]
[1728459212368,0.190271,62317.0,62316.0,0.04803726]
[1728459214384,0.190271,62317.0,62315.0,0.04803726]
[1728459214576,0.190271,62317.0,62314.0,0.00240668]
[1728459214577,0.080273,62315.0,62314.0,0.00240668]
[1728459214871,0.180273,62315.0,62314.0,0.00240668]
[1728459215771,0.180273,62315.0,62314.0,0.00340668]
[1728459216766,0.180273,62315.0,62314.0,0.19340668]
[1728459219879,0.1,62315.0,62314.0,0.19340668]
[1728459220079,0.1,62315.0,62314.0,0.27368068]
[1728459221279,0.1,62315.0,62314.0,0.27568068]
[1728459221479,0.1,62315.0,62314.0,0.27868068]
[1728459221883,0.441061,62325.0,62322.0,0.080264]
[1728459221884,0.36268001,62325.0,62322.0,0.080264]
[1728459222073,0.11,62323.0,62322.0,0.270264]
[1728459222577,0.3645,62330.0,62322.0,0.19]
[1728459222780,0.4608,62330.0,62329.0,0.270255]
[1728459224782,0.4608,62330.0,62329.0,0.271255]
[1728459225277,0.3608,62335.0,62332.0,0.080251]
[1728459225489,0.3608,62335.0,62329.0,0.002]
[1728459225490,0.4708,62335.0,62329.0,0.002]
[1728459225671,0.3608,62330.0,62329.0,0.002]
[1728459225875,0.1,62330.0,62329.0,0.002]
[1728459226478,0.1,62330.0,62329.0,0.001]
[1728459226479,0.4608,62330.0,62329.0,0.001]
[1728459226881,0.4608,62330.0,62327.0,0.10919725]
[1728459227876,0.4608,62330.0,62329.0,0.001]
[1728459228080,0.4608,62330.0,62329.0,0.002]
[1728459228478,0.4608,62330.0,62329.0,0.001]
[1728459228677,0.4608,62330.0,62327.0,0.11119725]
[1728459229279,0.4608,62330.0,62329.0,0.001]
[1728459229888,0.4608,62330.0,62329.0,0.191]
[1728459230077,0.1,62330.0,62329.0,0.192]
[1728459230783,0.1,62330.0,62329.0,0.271255]
[1728459231485,0.1,62330.0,62329.0,0.272255]
[1728459231792,0.0037,62337.0,62332.0,0.080251]
[1728459231981,0.1,62337.0,62335.0,0.18]
[1728459232284,0.00240669,62340.0,62336.0,0.18]
[1728459232490,0.12240669,62340.0,62336.0,0.18]
[1728459232977,0.12240669,62340.0,62337.0,0.080244]
[1728459233888,0.12240669,62340.0,62336.0,0.18]
[1728459233889,0.12240669,62340.0,62338.0,0.080243]
[1728459234685,0.12240669,62340.0,62336.0,0.181]
[1728459234686,0.12240669,62340.0,62336.0,0.18]
[1728459234986,0.12240669,62340.0,62339.0,0.080242]
[1728459235380,0.00240669,62340.0,62339.0,0.080242]
[1728459236186,0.0368,62345.0,62339.0,0.080242]
[1728459236487,0.1531,62345.0,62341.0,0.18]
[1728459236887,0.080237,62343.0,62341.0,0.18]
[1728459237085,0.180237,62343.0,62341.0,0.18]
[1728459238084,0.180237,62343.0,62341.0,0.182]
[1728459240482,0.1,62343.0,62341.0,0.002]
[1728459240793,0.080238,62342.0,62341.0,0.002]
[1728459240985,0.212938,62342.0,62341.0,0.002]
[1728459241585,0.573738,62342.0,62341.0,0.002]
[1728459241894,1.054978,62342.0,62341.0,0.002]
[1728459242584,1.054978,62342.0,62341.0,0.001]
[1728459242785,1.054978,62342.0,62341.0,0.002]
[1728459243483,1.054978,62342.0,62335.0,0.0037]
[1728459243484,0.080246,62336.0,62335.0,0.0037]
[1728459243693,0.080246,62336.0,62333.0,0.08025]
[1728459243694,0.080248,62335.0,62333.0,0.08025]
[1728459243880,0.190248,62335.0,62333.0,0.08025]
[1728459244679,0.080251,62332.0,62331.0,0.02892413]
[1728459244879,0.080251,62332.0,62329.0,0.080255]
[1728459244880,0.190251,62332.0,62329.0,0.080255]
[1728459245380,0.11,62332.0,62326.0,0.19]
[1728459245688,0.11,62332.0,62324.0,0.0301]
[1728459245689,0.11,62332.0,62330.0,0.270253]
[1728459246895,0.111,62332.0,62331.0,0.001]
[1728459247387,0.111,62332.0,62330.0,0.271253]
[1728459247593,0.111,62332.0,62330.0,0.272253]
[1728459247987,0.111,62332.0,62330.0,0.271253]
[1728459247988,0.11,62332.0,62330.0,0.271253]
[1728459248185,0.111,62332.0,62331.0,0.001]
[1728459248990,0.111,62332.0,62331.0,0.081253]
[1728459249401,0.111,62332.0,62331.0,0.082253]
[1728459249695,0.11,62332.0,62331.0,0.081253]
[1728459250294,0.11,62332.0,62331.0,0.082253]
[1728459251591,0.11,62332.0,62331.0,0.11118865]
[1728459252790,0.190251,62332.0,62331.0,0.03093565]
[1728459256890,0.551051,62332.0,62331.0,0.03093565]
[1728459257097,0.551051,62332.0,62331.0,0.002]
[1728459259897,0.190251,62332.0,62331.0,0.002]
[1728459260197,0.551051,62332.0,62331.0,0.002]
[1728459262598,0.4708,62332.0,62331.0,0.002]
[1728459262805,0.4708,62332.0,62331.0,0.082253]
[1728459263006,0.11,62332.0,62331.0,0.082253]
[1728459269326,0.190251,62332.0,62331.0,0.002]
[1728459270725,0.190251,62332.0,62331.0,0.05005451]
[1728459272228,0.190251,62332.0,62331.0,0.002]
[1728459275426,0.190251,62332.0,62331.0,0.05015333]
[1728459280538,0.190251,62332.0,62331.0,0.17015333]
[1728459282757,0.190251,62332.0,62331.0,0.122]
[1728459290040,0.190251,62332.0,62331.0,0.17016463]
[1728459291035,0.190251,62332.0,62331.0,0.122]
[1728459291939,0.190251,62332.0,62331.0,0.17016893]
[1728459292441,0.190251,62332.0,62331.0,0.122]
[1728459300649,0.11,62332.0,62331.0,0.122]
[1728459300854,0.11,62332.0,62331.0,0.563053]
[1728459301046,0.0037,62336.0,62331.0,0.59218408]
[1728459301248,0.11,62336.0,62335.0,0.26444885]
[1728459302644,0.551046,62336.0,62335.0,0.001]
[1728459303252,0.551046,62336.0,62335.0,0.04914476]
[1728459303751,0.551046,62336.0,62335.0,0.05014476]
[1728459304348,0.671046,62336.0,62335.0,0.05014476]
[1728459304549,0.671046,62336.0,62335.0,0.05014423]
[1728459304751,0.671046,62336.0,62335.0,0.002]
[1728459307056,0.671046,62336.0,62335.0,0.0003]
[1728459311554,0.551046,62336.0,62335.0,0.0003]
[1728459320855,1.632326,62336.0,62335.0,0.0003]
[1728459321055,1.66621248,62336.0,62335.0,0.0003]
[1728459321355,1.69440813,62336.0,62335.0,0.0003]
[1728459321555,1.66052165,62336.0,62335.0,0.0003]
[1728459321763,1.69438734,62336.0,62335.0,0.0003]
[1728459322363,1.69438734,62336.0,62326.0,0.0037]
[1728459322574,0.561058,62327.0,62326.0,0.0037]
[1728459322777,0.080265,62321.0,62320.0,0.04814423]
[1728459323069,0.180265,62321.0,62320.0,0.04813]
[1728459324066,0.080267,62320.0,62319.0,0.080267]
[1728459324255,0.190267,62320.0,62319.0,0.080267]
[1728459324458,0.080269,62318.0,62316.0,0.0327]
[1728459324656,0.080269,62318.0,62317.0,0.04810363]
[1728459324657,0.180269,62318.0,62317.0,0.04810363]
[1728459324854,0.300269,62318.0,62317.0,0.04810363]
[1728459325069,0.22,62318.0,62316.0,0.04810363]
[1728459325262,0.064221,62317.0,62316.0,0.04810363]
[1728459325461,0.080272,62316.0,62315.0,0.10855703]
[1728459325661,0.200272,62316.0,62315.0,0.10855703]
[1728459325861,0.200272,62316.0,62315.0,0.02828403]
[1728459326163,0.080274,62314.0,62313.0,0.07900363]
[1728459326364,0.190274,62314.0,62313.0,0.0309]
[1728459326762,0.190274,62314.0,62313.0,0.05917535]
[1728459328269,0.190274,62314.0,62313.0,0.06217535]
[1728459328968,0.190274,62314.0,62313.0,0.06717535]
[1728459329566,0.11,62314.0,62313.0,0.14745135]
[1728459331074,0.00188001,62317.0,62316.0,0.080272]
[1728459331281,0.0037,62324.0,62323.0,0.080263]
[1728459331575,0.0037,62331.0,62328.0,0.080256]
[1728459331762,0.11,62329.0,62328.0,0.200256]
[1728459332163,0.11,62329.0,62328.0,0.233356]
[1728459332373,0.11,62329.0,62328.0,0.303356]
[1728459333373,0.11,62329.0,62328.0,0.304356]
[1728459333374,0.111,62329.0,62328.0,0.304356]
[1728459333574,0.111,62329.0,62328.0,0.305356]
[1728459334364,0.111,62329.0,62328.0,0.36690091]
[1728459334563,0.001,62329.0,62328.0,0.83822091]
[1728459334773,0.001,62329.0,62328.0,0.88625085]
[1728459334965,0.001,62329.0,62328.0,0.83822091]
[1728459336978,0.001,62329.0,62328.0,0.35690091]
[1728459337681,0.001,62329.0,62328.0,0.36690091]
[1728459341171,0.001,62329.0,62328.0,0.35690091]
[1728459341570,0.001,62329.0,62328.0,1.50242276]
[1728459342080,0.001,62329.0,62328.0,1.02110276]
[1728459342280,0.0037,62336.0,62333.0,0.08025]
[1728459342476,0.18932424,62338.0,62333.0,0.63105]
[1728459342477,0.10240698,62334.0,62333.0,0.63105]
[1728459343480,0.10340698,62334.0,62333.0,0.63305]
[1728459346277,0.10340698,62334.0,62333.0,0.62305]
[1728459347281,0.10340698,62334.0,62333.0,2.13305]
[1728459347481,0.10340698,62334.0,62333.0,0.63305]
[1728459347882,0.0037,62341.0,62340.0,0.01505]
[1728459348083,0.12,62341.0,62340.0,0.095291]
[1728459349478,0.12,62341.0,62340.0,0.12571723]
[1728459351079,0.12,62341.0,62340.0,0.12671723]
[1728459354477,0.12,62341.0,62340.0,0.24671723]
[1728459356986,0.00132,62344.0,62343.0,0.080237]
[1728459357186,0.00132,62344.0,62343.0,0.200237]
[1728459357593,0.00132,62350.0,62347.0,0.080232]
[1728459357896,0.11,62350.0,62349.0,0.12]
[1728459360890,0.4708,62350.0,62349.0,0.12]
[1728459361286,0.551028,62350.0,62349.0,0.12]
[1728459361692,0.080233,62347.0,62346.0,0.12]
[1728459362000,0.200233,62347.0,62346.0,0.16796543]
[1728459362189,0.200233,62347.0,62346.0,0.12]
[1728459364107,0.200233,62347.0,62346.0,0.200233]
[1728459364108,0.12,62347.0,62346.0,0.200233]
[1728459364588,0.12,62347.0,62346.0,0.201233]
[1728459366599,0.12,62347.0,62346.0,0.001]
[1728459366600,0.24,62347.0,62346.0,0.001]
[1728459366808,0.320232,62347.0,62346.0,0.001]
[1728459371304,0.200232,62347.0,62346.0,0.001]
[1728459375512,0.200232,62347.0,62346.0,0.121]
[1728459376214,0.12,62347.0,62346.0,0.201233]
[1728459377520,0.12,62347.0,62346.0,0.26532752]
[1728459378512,0.12,62347.0,62346.0,0.201233]
[1728459380324,0.12,62347.0,62346.0,0.24930204]
[1728459386128,0.12,62347.0,62346.0,0.16906904]
[1728459386323,0.12,62347.0,62346.0,0.04906904]
[1728459386625,0.200232,62347.0,62346.0,0.04906904]
[1728459388520,0.200232,62347.0,62346.0,0.09715559]
[1728459388922,0.200232,62347.0,62346.0,0.1452422]
[1728459389630,0.200232,62347.0,62346.0,0.09715559]
[1728459401341,0.561032,62347.0,62346.0,0.09715559]
[1728459402844,0.200232,62347.0,62346.0,0.09715559]
[1728459403042,0.561032,62347.0,62346.0,0.09715559]
[1728459405441,0.561032,62347.0,62346.0,0.001]
[1728459411245,0.561032,62347.0,62346.0,0.081233]
[1728459416049,0.561032,62347.0,62346.0,0.001]
[1728459422367,1.67659406,62347.0,62346.0,0.001]
[1728459422660,1.70769406,62347.0,62346.0,0.001]
[1728459423864,1.74725194,62347.0,62346.0,0.001]
[1728459424955,1.70769406,62347.0,62346.0,0.001]
[1728459429751,1.82769406,62347.0,62346.0,0.001]
[1728459430458,1.82735497,62347.0,62346.0,0.001]
[1728459432659,1.22735497,62347.0,62346.0,0.001]
[1728459435169,1.58815497,62347.0,62346.0,0.001]
[1728459435471,0.86653789,62347.0,62346.0,0.001]
[1728459435673,1.58813789,62347.0,62346.0,0.001]
[1728459435970,1.10693789,62347.0,62346.0,0.001]
[1728459436959,0.38533789,62347.0,62346.0,0.001]
[1728459437166,1.10693789,62347.0,62346.0,0.001]
[1728459438274,0.08024,62341.0,62340.0,0.01875]
[1728459438575,0.67104,62341.0,62340.0,0.01505]
[1728459439191,1.03184,62341.0,62340.0,0.01505]
[1728459439395,1.03184,62341.0,62340.0,0.01605]
[1728459439586,1.03184,62341.0,62340.0,0.01705]
[1728459440595,0.31024,62341.0,62340.0,0.01705]
[1728459440893,1.03184,62341.0,62340.0,0.01705]
[1728459441495,2.11308,62341.0,62333.0,0.0037]
[1728459441790,0.080253,62331.0,62330.0,0.0037]
[1728459442095,0.080256,62328.0,62327.0,0.03450611]
[1728459442287,0.200256,62328.0,62327.0,0.03450611]
[1728459443584,0.201256,62328.0,62327.0,0.03650611]
[1728459444886,0.201256,62328.0,62327.0,0.00440611]
[1728459445086,0.201256,62328.0,62327.0,0.002]
[1728459447092,0.922856,62328.0,62327.0,0.002]
[1728459449603,1.404176,62328.0,62327.0,0.002]
[1728459453006,0.922856,62328.0,62327.0,0.002]
[1728459455696,0.922856,62328.0,62325.0,0.01605]
[1728459456002,0.080265,62321.0,62320.0,0.0037]
[1728459456302,0.080274,62314.0,62313.0,0.0037]
[1728459456497,0.080276,62313.0,62312.0,0.01605]
[1728459456701,0.190276,62313.0,62312.0,0.01605]
[1728459458408,0.551076,62313.0,62312.0,0.02105]
[1728459458803,0.551076,62313.0,62312.0,0.02905]
[1728459465302,0.551076,62313.0,62312.0,0.02105]
[1728459465502,0.551076,62313.0,62312.0,0.02505]
[1728459465916,0.551076,62313.0,62312.0,0.02205]
[1728459467621,0.911876,62313.0,62312.0,0.02205]
[1728459468420,0.190276,62313.0,62312.0,0.02205]
[1728459468623,0.911876,62313.0,62312.0,0.02205]
[1728459478224,1.031876,62313.0,62312.0,0.02205]
[1728459478833,0.911876,62313.0,62312.0,0.02205]
[1728459479029,1.031876,62313.0,62312.0,0.02205]
[1728459482539,0.551076,62313.0,62312.0,0.14205]
[1728459482944,0.190276,62313.0,62312.0,0.14205]
[1728459483443,0.11,62313.0,62312.0,0.222327]
[1728459483644,0.0601,62313.0,62312.0,1.33236148]
[1728459485750,0.0601,62313.0,62312.0,1.38048183]
[1728459487447,0.0601,62313.0,62312.0,1.33236148]
[1728459490742,0.0601,62313.0,62312.0,1.38041006]
[1728459491151,0.0601,62313.0,62312.0,1.33236148]
[1728459491347,0.0601,62313.0,62312.0,1.38040587]
[1728459492649,0.0601,62313.0,62312.0,1.33236148]
[1728459496650,0.0601,62313.0,62312.0,0.73236148]
[1728459496956,0.0601,62313.0,62312.0,1.33236148]
[1728459499755,0.0601,62313.0,62312.0,0.73236148]
[1728459500356,0.083966,62321.0,62312.0,1.69316148]
[1728459500557,0.190266,62321.0,62320.0,0.080267]
[1728459500857,0.11,62321.0,62320.0,0.080267]
[1728459502654,0.113,62321.0,62320.0,0.080267]
[1728459503955,0.09695,62321.0,62320.0,0.12831139]
[1728459504256,0.09695,62321.0,62320.0,1.161667]
[1728459504257,0.003,62321.0,62320.0,1.161667]
[1728459504760,0.003,62321.0,62320.0,1.19004607]
[1728459505260,0.18935418,62330.0,62329.0,0.01235]
[1728459505459,0.29935418,62330.0,62329.0,0.212605]
[1728459505652,0.11,62330.0,62329.0,0.212605]
[1728459506859,0.113,62330.0,62329.0,0.213605]
[1728459507450,0.113,62330.0,62329.0,0.574405]
[1728459507648,0.113,62330.0,62329.0,1.655725]
[1728459507649,0.003,62330.0,62329.0,1.655725]
[1728459507854,0.0304,62339.0,62338.0,0.080243]
[1728459508050,0.0304,62339.0,62335.0,0.12]
[1728459508258,0.080245,62337.0,62335.0,0.12]
[1728459509362,0.080245,62337.0,62335.0,0.121]
[1728459509558,0.082245,62337.0,62335.0,0.122]
[1728459509962,0.002,62337.0,62335.0,0.122]
[1728459510264,0.002,62337.0,62336.0,0.080246]
[1728459512060,0.002,62337.0,62336.0,0.081246]
[1728459512761,0.002,62337.0,62336.0,0.082246]
[1728459514354,0.112,62337.0,62336.0,0.082246]
[1728459514562,0.002,62337.0,62336.0,0.443046]
[1728459515461,0.112,62337.0,62336.0,0.443046]
[1728459516368,0.112,62337.0,62336.0,0.202246]
[1728459516560,0.112,62337.0,62336.0,0.23065243]
[1728459518464,0.112,62337.0,62336.0,0.11065243]
[1728459522361,0.112,62337.0,62336.0,0.03040643]
[1728459522667,0.080253,62331.0,62330.0,0.0037]
[1728459522862,0.080253,62331.0,62330.0,0.02903759]
[1728459522863,0.320253,62331.0,62330.0,0.02903759]
[1728459523062,0.2721,62331.0,62329.0,0.01235]
[1728459523269,0.111354,62330.0,62329.0,0.01235]
[1728459523566,0.231354,62330.0,62329.0,0.04130665]
[1728459523763,0.231354,62330.0,62329.0,0.01235]
[1728459525561,0.231354,62330.0,62329.0,0.01335]
[1728459525766,0.234354,62330.0,62329.0,0.01435]
[1728459529266,0.234354,62330.0,62329.0,0.13435]
[1728459533770,0.203254,62330.0,62329.0,0.214605]
[1728459534081,0.123,62330.0,62329.0,0.214605]
[1728459535473,0.123,62330.0,62329.0,0.26267472]
[1728459535672,0.123,62330.0,62329.0,0.214605]
[1728459536271,0.123,62330.0,62329.0,0.26267604]
[1728459536475,0.123,62330.0,62329.0,0.214605]
[1728459540587,0.203254,62330.0,62329.0,0.01435]
[1728459542281,0.564054,62330.0,62329.0,0.01435]
[1728459543073,0.564054,62330.0,62329.0,0.214605]
[1728459545088,0.203254,62330.0,62329.0,0.214605]
[1728459546885,0.123,62330.0,62329.0,0.214605]
[1728459548388,0.123,62330.0,62329.0,0.26267604]
[1728459549187,0.123,62330.0,62329.0,0.14267604]
[1728459549378,0.123,62330.0,62329.0,0.26267604]
[1728459550084,0.123,62330.0,62329.0,0.214605]
[1728459552879,0.123,62330.0,62329.0,0.27862122]
[1728459558491,0.123,62330.0,62329.0,0.2788204]
[1728459558898,0.123,62330.0,62329.0,0.214605]
[1728459562996,0.0037,62337.0,62329.0,1.656725]
[1728459563194,0.12,62337.0,62336.0,0.200246]
[1728459563592,0.12,62337.0,62336.0,0.2484046]
[1728459564093,0.12,62337.0,62336.0,0.200246]
[1728459564700,0.12,62337.0,62336.0,0.2484046]
[1728459565196,0.12,62337.0,62336.0,0.200246]
[1728459566189,0.12,62337.0,62336.0,0.201246]
[1728459566685,0.12,62337.0,62336.0,0.202246]
[1728459567493,0.12,62337.0,62336.0,0.25038454]
[1728459567888,0.12,62337.0,62336.0,0.202246]
[1728459568495,0.12,62337.0,62336.0,0.2315625]
[1728459574913,0.200245,62337.0,62336.0,0.2315625]
[1728459575696,0.200245,62337.0,62336.0,0.0313165]
[1728459575896,0.681045,62337.0,62336.0,0.0313165]
[1728459576201,0.080253,62331.0,62330.0,0.04813041]
[1728459576395,0.561053,62331.0,62330.0,0.04813041]
[1728459576596,0.080254,62330.0,62329.0,0.08871287]
[1728459576796,0.232454,62330.0,62329.0,0.08871287]
[1728459577005,0.232454,62330.0,62329.0,0.04058246]
[1728459577897,0.232454,62330.0,62329.0,0.08971287]
[1728459578692,0.233454,62330.0,62329.0,0.09071287]
[1728459580001,0.233454,62330.0,62329.0,0.04258246]
[1728459593014,0.233454,62330.0,62329.0,0.09071287]
[1728459593815,0.233454,62330.0,62329.0,0.04258246]
[1728459594109,0.233454,62330.0,62329.0,0.09071287]
[1728459595510,0.1532,62330.0,62329.0,0.09071287]
[1728459595706,0.121,62330.0,62329.0,0.17096787]
[1728459598112,0.121,62330.0,62329.0,0.12283746]
[1728459598710,0.121,62330.0,62329.0,0.17096787]
[1728459600713,0.121,62330.0,62329.0,0.12283746]
[1728459600923,0.001,62330.0,62329.0,0.54782219]
[1728459601111,0.001,62330.0,62329.0,0.48363746]
[1728459601310,0.0037,62337.0,62329.0,0.88470246]
[1728459601517,0.1,62337.0,62336.0,0.200246]
[1728459602313,0.1,62337.0,62336.0,0.24835445]
[1728459602705,0.1,62337.0,62336.0,0.24935445]
[1728459602906,0.1,62337.0,62336.0,0.24935446]
[1728459602907,0.180245,62337.0,62336.0,0.24935446]
[1728459603422,0.180245,62337.0,62336.0,0.201246]
[1728459604029,0.180245,62337.0,62336.0,0.24935446]
[1728459604721,0.180245,62337.0,62336.0,0.25035446]
[1728459605115,0.180245,62337.0,62336.0,0.23099676]
[1728459605313,0.180245,62337.0,62336.0,0.27910192]
[1728459606114,0.180245,62337.0,62336.0,0.23099676]
[1728459608725,0.1,62337.0,62336.0,0.23099676]
[1728459614338,0.1,62337.0,62336.0,0.27907178]
[1728459615623,0.1,62337.0,62336.0,0.23099676]
[1728459620134,0.1,62337.0,62336.0,0.27907178]
[1728459621937,0.1,62337.0,62336.0,0.23099676]
[1728459623537,0.1,62337.0,62336.0,0.11099676]